[Event "1000GM Schev-B January 2024"]
[Site "Sunnyvale"]
[Date "2024.01.22"]
[Round "5.1"]
[White "Bhatta, Rohit"]
[Black "Rivera, Ingris"]
[Result "1/2-1/2"]
[ECO "A49"]
[WhiteElo "1867"]
[BlackElo "2145"]
[Annotator "TA"]
[PlyCount "30"]
[EventDate "2024.01.20"]
[EventType "schev"]
[EventCountry "USA"]
[SourceTitle "playchess.com"]
[Source "ChessBase"]
[SourceQuality "1"]
[TimeControl "5400+30"]

{[%evp 14,30,29,13,22,0,17,12,29,17,24,16,31,13,31,0,37,0,16]} 1. d4 {[%emt 0:02:48]} Nf6 {[%emt 0:06:12]} 2. c4 {[%emt 0:00:06]} g6 {[%emt 0:00:15]} 3. g3 {[%emt 0:00:24]} Bg7 {[%emt 0:00:06]} 4. Bg2 {[%emt 0:00:06]} O-O {[%emt 0:00:11]} 5. Nc3 {[%emt 0:00:15]} c5 {[%emt 0:00:50]} 6. dxc5 {[%emt 0:01:03]} Na6 {[%emt 0:00:18]} 7. Nf3 {[%emt 0:00:45]} Nxc5 {[%emt 0:00:12]} 8. O-O {[%emt 0:00:24]} d6 {[%emt 0:00:20]} 9. Nd4 {[%emt 0:00:48]} Rb8 {[%emt 0:00:46]} 10. h3 {[%emt 0:01:03]} Bd7 {[%emt 0:01:18]} 11. Be3 {[%emt 0:02:05]} a6 {[%emt 0:00:44]} 12. Rc1 {[%emt 0:02:53]} Qa5 {[%emt 0:09:43]} 13. Bd2 {[%emt 0:18:22]} Qd8 {[%emt 0:01:36]} 14. Be3 {[%emt 0:02:25]} (14. b4 $5 Ne6 15. Be3 $11) 14... Qa5 {[%emt 0:00:15]} 15. Bd2 {[%emt 0:01:08]} Qd8 {[%emt 0:00:16] An uneventful encounter.   Weighted Error Value: White=0.14 (very precise) /Black=0.11 (very precise) .  OK:         	White=2     	Black=2} 1/2-1/2

[Event "1000GM Schev-B January 2024"]
[Site "Sunnyvale"]
[Date "2024.01.22"]
[Round "5.2"]
[White "Hernandez Jimenez, Jeronimo"]
[Black "Talwalkar, Vedant"]
[Result "1-0"]
[ECO "A80"]
[WhiteElo "2187"]
[BlackElo "1890"]
[Annotator "RC"]
[PlyCount "73"]
[EventDate "2024.01.20"]
[EventType "schev"]
[EventCountry "USA"]
[SourceTitle "playchess.com"]
[Source "ChessBase"]
[SourceQuality "1"]
[TimeControl "5400+30"]

1. d4 {[%emt 0:10:15]} f5 {[%emt 0:00:06]} 2. Bg5 {[%emt 0:00:29]} g6 {[%emt 0:01:20]} 3. Nc3 {[%emt 0:00:35]} Bg7 {[%emt 0:01:52]} 4. e4 {[%emt 0:00:37]} fxe4 {[%emt 0:01:05]} 5. Nxe4 {[%emt 0:00:32]} d5 {[%emt 0:01:22]} 6. Ng3 {[%emt 0:01:14]} Nf6 {[%emt 0:04:00]} 7. Nf3 {[%emt 1:20:18]} Bg4 {[%emt 0:02:56]} 8. Be2 {[%emt 0:00:00]} Ne4 {[%emt 0:12:07]} 9. Be3 {[%emt 0:00:00]} Bxf3 {[%emt 0:13:17]} 10. Bxf3 {[%emt 0:00:00]} Nxg3 {[%emt 0:00:28]} 11. hxg3 {[%emt 0:00:00]} e6 {[%emt 0:57:27]} 12. c3 {[%emt 0:00:00]} Nc6 {[%emt 0:00:00]} 13. Qd3 {[%emt 0:00:00]} Qf6 {[%emt 0:00:00]} 14. O-O-O {[%emt 0:00:00]} O-O-O {[%emt 0:00:00]} 15. Bg4 {[%emt 0:00:00]} Kb8 {[%emt 0:00:00]} 16. f4 {[%emt 0:00:00]} Na5 {[%emt 0:00:00]} 17. Kb1 {[%emt 0:00:00]} Rd6 {[%emt 0:00:00]} 18. Bc1 {[%emt 0:00:00]} Rb6 {[%emt 0:00:00]} 19. Rde1 {[%emt 0:00:00]} h6 {[%emt 0:00:00]} 20. Bd1 {[%emt 0:00:00]} Nc4 {[%emt 0:00:00]} 21. Ka1 {[%emt 0:00:00]} Nd6 {[%emt 0:00:00]} 22. Bc2 {[%emt 0:00:00]} Nf5 {[%emt 0:00:00]} 23. g4 {[%emt 0:00:00]} Ne7 {[%emt 0:00:00]} 24. g5 {[%emt 0:08:30]} Qf7 {[%emt 0:00:00]} 25. gxh6 {[%emt 0:00:00]} Rxh6 {[%emt 0:00:00]} 26. Rxh6 {[%emt 0:00:00]} Bxh6 {[%emt 0:00:00]} 27. Qh3 {[%emt 0:00:00]} Bg7 {[%emt 0:00:00]} 28. Qh7 {[%emt 0:00:00]} a5 {[%emt 0:00:00]} 29. f5 {[%emt 0:00:00]} g5 {[%emt 0:00:00]} 30. Bxg5 {[%emt 0:00:00]} Nxf5 {[%emt 0:00:00]} 31. Rf1 {[%emt 0:00:00]} Qd7 {[%emt 0:00:00]} 32. a4 {[%emt 0:00:00]} Rd6 {[%emt 0:02:28]} 33. g4 {[%emt 0:00:00]} Ng3 {[%emt 0:00:25]} 34. Qg8+ {[%emt 0:00:00]} Ka7 {[%emt 0:00:07]} 35. Rf7 {[%emt 0:00:00]} Qc6 {[%emt 0:00:59]} 36. Qxg7 {[%emt 0:00:00]} Qa6 {[%emt 0:00:31]} 37. Qe5 {[%emt 0:00:00]} 1-0

[Event "1000GM Schev-B January 2024"]
[Site "Sunnyvale"]
[Date "2024.01.22"]
[Round "5.3"]
[White "Angeles Mercado, Anthony R"]
[Black "Jin, Austin"]
[Result "1-0"]
[ECO "C54"]
[WhiteElo "2057"]
[BlackElo "1836"]
[Annotator "TA"]
[PlyCount "85"]
[EventDate "2024.01.20"]
[EventType "schev"]
[EventCountry "USA"]
[SourceTitle "playchess.com"]
[Source "ChessBase"]
[SourceQuality "1"]
[TimeControl "5400+30"]

{[%evp 21,85,15,12,11,12,0,14,0,12,-14,-10,-16,0,0,0,-11,68,0,0,-20,18,7,8,9,2,8,8,-20,43,45,45,43,57,45,230,221,265,231,304,147,591,605,642,603,557,443,455,458,424,414,537,416,388,408,365,245,406,396,29982,29983,29983,29984,29985,29986,29986,29987]} 1. e4 {[%emt 0:13:12]} e5 {[%emt 0:00:05]} 2. Nf3 {[%emt 0:00:06]} Nc6 {[%emt 0:00:03]} 3. Bc4 {[%emt 0:00:06]} Bc5 {[%emt 0:00:07]} 4. O-O {[%emt 0:00:23]} Nf6 {[%emt 0:00:11]} 5. d3 {[%emt 0:00:20]} O-O {[%emt 0:00:19]} 6. Re1 {[%emt 0:01:10]} d6 {[%emt 0:00:08]} 7. c3 {[%emt 0:00:09]} a6 {[%emt 0:00:16]} 8. Bb3 {[%emt 0:00:29]} h6 {[%emt 0:00:12]} 9. h3 {[%emt 0:00:35]} Re8 {[%emt 0:00:32]} 10. Nbd2 {[%emt 0:00:43][%cal Bb1d2,Bd2f1,Bf1g3][%mdl 32]} Ba7 {[%emt 0:00:16]} 11. Nf1 {[%emt 0:00:43]} Be6 {[%emt 0:00:44]} 12. Ba4 {[%emt 0:04:51]} b5 {[%emt 0:03:54]} 13. Bc2 {[%emt 0:00:40]} d5 {[%emt 0:05:42]} 14. Ng3 {[%emt 0:13:54] The position is equal.} Qd7 {[%emt 0:03:26]} 15. Be3 {[%emt 0:06:53]} (15. exd5 {is interesting.} Bxd5 16. Nh4 Rad8 17. b4) 15... Bxe3 {[%emt 0:01:07]} 16. Rxe3 {[%emt 0:00:29]} Rad8 {[%emt 0:01:40]} 17. Qc1 {[%emt 0:08:17]} a5 {[%emt 0:07:09]} 18. Re1 {[%emt 0:11:26]} Qc8 {[%emt 0:06:27]} (18... a4 $11) 19. Nh4 {[%emt 0:03:17]} (19. d4 $14) 19... Qd7 {[%emt 0:09:22]} 20. Rd1 {[%emt 0:05:58]} Ne7 {[%emt 0:03:40][%cal Oe6h3]} 21. d4 {[%emt 0:04:10]} Nxe4 {[%emt 0:05:06]} 22. Nxe4 {[%emt 0:01:29]} dxe4 {[%emt 0:00:12]} 23. dxe5 {[%emt 0:01:24]} Qc6 {[%emt 0:00:35]} 24. Qe3 {[%emt 0:02:38]} Nf5 {[%emt 0:01:47]} (24... Bd5 $11 25. Rd4 g5) 25. Nxf5 $14 {[%emt 0:01:52]} Bxf5 {[%emt 0:00:26]} 26. f4 {[%emt 0:00:33]} Rxd1+ {[%emt 0:06:04]} 27. Rxd1 {[%emt 0:00:17]} f6 $2 {[%emt 0:44:30] [#]} (27... g5 $1 $14) 28. g4 $1 $18 {[%emt 0:01:27]} Bh7 {[%emt 0:00:00]} 29. Bb3+ {[%emt 0:01:28]} Kh8 {[%emt 0:00:00]} 30. Bd5 {[%emt 0:00:24]} (30. e6 $18 {has better winning chances.}) 30... Qa6 $2 {[%emt 0:00:00][%mdl 8192] [#] Loses the game.} (30... Qd7 $16) 31. Bf7 $1 {[%emt 0:01:00]} ({Not} 31. Bxe4 Bxe4 32. Qxe4 Qe6 $11) 31... Rc8 {[%emt 0:00:00]} 32. e6 {[%emt 0:00:47] And now e7 would win.} Bg8 {[%emt 0:00:00]} 33. Bxg8 {[%emt 0:02:48]} Kxg8 {[%emt 0:00:00]} 34. Qxe4 {[%emt 0:00:05][%mdl 4096] Endgame. KQR-KQR} Qb6+ {[%emt 0:00:00]} 35. Kg2 {[%emt 0:00:27] Hoping for e7.} Qc5 {[%emt 0:00:00]} 36. e7 {[%emt 0:06:08] Intending Rd8+ and mate.} Re8 {[%emt 0:00:00]} 37. Qe6+ {[%emt 0:00:11]} Kh7 {[%emt 0:00:00]} 38. Re1 {[%emt 0:00:24] Qd7 would now be deadly.} Qc4 $2 {[%emt 0:00:00]} (38... Qd6 {was called for.} 39. Qxd6 cxd6) 39. Qd7 {[%emt 0:01:30]} Qxf4 $2 {[%emt 0:00:00]} (39... Qf7 $18 40. Re6 (40. Qxb5 Rxe7 41. Qd3+ g6 $18) 40... b4) 40. Qxe8 {[%emt 0:00:40] White mates.} Qd2+ {[%emt 0:00:00]} 41. Kf1 {[%emt 0:00:26]} Qd3+ {[%emt 0:00:00]} 42. Kf2 {[%emt 0:01:46]} Qd2+ {[%emt 0:00:00]} 43. Re2 {[%emt 0:00:04] Weighted Error Value: White=0.26 (precise) /Black=0.65.  Loses game:     	---       	Black=2      Mistake:       	White=2     	Black=4      Inaccurate:     	White=3     	Black=2      OK:         	White=7     	Black=7      Best:        	White=3     	Black=2      Strong:       	White=2     	---} 1-0

[Event "1000GM Schev-B January 2024"]
[Site "Sunnyvale"]
[Date "2024.01.22"]
[Round "5.4"]
[White "Stevens, Adam B"]
[Black "Gracia Alvarez, Gerardo Antonio"]
[Result "0-1"]
[ECO "D30"]
[WhiteElo "1878"]
[BlackElo "2224"]
[Annotator "RC"]
[PlyCount "56"]
[EventDate "2024.01.20"]
[EventType "schev"]
[EventCountry "USA"]
[SourceTitle "playchess.com"]
[Source "ChessBase"]
[SourceQuality "1"]
[TimeControl "5400+30"]

1. d4 {[%emt 0:00:11]} d5 {[%emt 0:00:06]} 2. c4 {[%emt 0:00:11]} e6 {[%emt 0:00:03]} 3. Nf3 {[%emt 0:00:04]} h6 {[%emt 0:00:23]} 4. g3 {[%emt 0:01:51]} Nf6 {[%emt 0:00:08]} 5. Bg2 {[%emt 0:00:18]} Bd6 {[%emt 0:00:06]} 6. O-O {[%emt 0:03:27]} O-O {[%emt 0:00:10]} 7. Qc2 {[%emt 0:01:23]} b6 {[%emt 0:00:24]} 8. cxd5 {[%emt 0:00:44]} exd5 {[%emt 0:00:07]} 9. Nc3 {[%emt 0:00:29]} Bb7 {[%emt 0:00:46]} 10. Nb5 {[%emt 0:01:18]} Re8 {[%emt 0:03:37]} 11. Nxd6 {[%emt 0:04:54]} cxd6 {[%emt 0:00:05]} 12. b3 {[%emt 0:08:07]} Nc6 {[%emt 0:00:15]} 13. Ba3 {[%emt 0:03:49]} b5 {[%emt 0:02:30]} 14. e3 {[%emt 0:01:53]} a5 {[%emt 0:06:12]} 15. Rac1 {[%emt 0:03:43]} Qd7 {[%emt 0:05:52]} 16. h4 {[%emt 0:07:36]} Rec8 {[%emt 0:03:24]} 17. Qb1 {[%emt 0:04:25]} b4 {[%emt 0:05:09]} 18. Bb2 {[%emt 0:01:06]} a4 {[%emt 0:04:17]} 19. Nd2 {[%emt 0:02:12]} a3 {[%emt 0:04:29]} 20. Ba1 {[%emt 0:00:03]} Ne7 {[%emt 0:00:36]} 21. e4 {[%emt 0:00:53]} Nxe4 {[%emt 0:03:10]} 22. Nxe4 {[%emt 0:00:57]} dxe4 {[%emt 0:00:03]} 23. Bxe4 {[%emt 0:01:27]} Bxe4 {[%emt 0:00:23]} 24. Qxe4 {[%emt 0:00:03]} d5 {[%emt 0:00:23]} 25. Qd3 {[%emt 0:01:12]} Qf5 {[%emt 0:11:16]} 26. Qd2 {[%emt 0:02:53]} Rxc1 {[%emt 0:02:30]} 27. Rxc1 {[%emt 0:00:10]} Rc8 {[%emt 0:47:36]} 28. Rc5 {[%emt 0:00:46]} Qb1+ {[%emt 0:00:00]} 0-1

[Event "1000GM Schev-B January 2024"]
[Site "Sunnyvale"]
[Date "2024.01.22"]
[Round "5.5"]
[White "Ganesan, Vikrant"]
[Black "Contreras, Henry"]
[Result "1/2-1/2"]
[ECO "A70"]
[WhiteElo "1870"]
[BlackElo "2107"]
[Annotator "TA"]
[PlyCount "32"]
[EventDate "2024.01.20"]
[EventType "schev"]
[EventCountry "USA"]
[SourceTitle "playchess.com"]
[Source "ChessBase"]
[SourceQuality "1"]
[TimeControl "5400+30"]

{[%evp 24,32,95,111,108,73,98,72,105,0,0]} 1. c4 {[%emt 0:02:47]} Nf6 {[%emt 0:00:12]} 2. Nc3 {[%emt 0:00:05]} g6 {[%emt 0:00:06]} 3. e4 {[%emt 0:00:11]} d6 {[%emt 0:00:03]} 4. d4 {[%emt 0:00:38]} Bg7 {[%emt 0:00:02]} 5. h3 {[%emt 0:00:06]} c5 {[%emt 0:00:40]} 6. d5 {[%emt 0:00:13]} O-O {[%emt 0:00:12]} 7. Bd3 {[%emt 0:01:29]} e6 {[%emt 0:00:13]} 8. Nf3 {[%emt 0:00:39]} exd5 {[%emt 0:00:03]} 9. cxd5 {[%emt 0:00:46]} a6 {[%emt 0:00:03]} 10. a4 {[%emt 0:00:08]} Re8 {[%emt 0:01:37]} 11. O-O {[%emt 0:00:06]} c4 {[%emt 0:00:08]} 12. Bc2 {[%emt 0:02:02]} Nbd7 {[%emt 0:00:02]} 13. Be3 {[%emt 0:00:28]} Rb8 {[%emt 0:00:19]} 14. Ba7 {[%emt 0:02:04]} Ra8 {[%emt 0:00:02]} 15. Bd4 {[%emt 0:00:09]} Rb8 {[%emt 0:00:07]} 16. Ba7 {[%emt 0:00:10] White is more active.} ({White should play} 16. a5 $16) 16... Ra8 {[%emt 1:34:41] White did not feel at home in the position after the opening.   Weighted Error Value: White=0.36/Black=0.15 (very precise) .  Mistake:       	White=1     	---        Inaccurate:     	White=1     	Black=1      OK:         	White=1     	Black=1      Best:        	---       	Black=1} 1/2-1/2